Cogmind - Beta 15 @@@ ROGUE MODE // 2025.08.07 @ 20:37:49 Player: JuustuToug Result: Destroyed by B-75 Beast with Heavy Machine Gun Performance ------------- Evolutions (5) 2500 Regions Visited (12) 2400 Robots Destroyed (122) 610 Value Destroyed (5606) 5606 Prototype IDs (7) 140 Alien Tech Used (0) 0 Bonus (1883) 1883 TOTAL SCORE: 13139 Bonus ------- High Alert Combat Kills 166 Follower Combat Kills 61 Entered Garrisons 200 Used RIF Installer 500 Entered DSFs 1000 Friendly Fire -44 Cogmind --------- Core Integrity 0/1000 Matter 300/300 Energy 99/100 System Corruption 9% Temperature Cool (0) Movement Core (50) Location -5/Upper Caves Parts ------- > --- POWER (2) -------- (None) > --- PROPULSION (4) --- (None) > --- UTILITY (7) ------ Advanced Terrain Scan Processor Microactuators > --- WEAPON (4) ------- (None) > --- INVENTORY (5) ---- Light Fission Core Relay Coupler [Grunt] (33) Improved Heavy Laser Heavy Beamcaster Scythe Peak State ------------ > --- POWER ------------ Light Angular Momentum Engine Light Antimatter Reactor > --- PROPULSION ------- Flexi-carbon Leg Flexi-carbon Leg Thunder Leg Thunder Leg > --- UTILITY ---------- Advanced Heat Sink Advanced Heat Sink Medium Storage Unit Enhanced Optical Array Advanced Sensor Array Weapon Cycler Transmission Jammer > --- WEAPON ----------- Plasma Rifle Plasma Rifle Plasma Rifle Kinetic Spear > --- INVENTORY -------- Light Angular Momentum Engine Carbon-fiber Leg Carbon-fiber Leg Carbon-fiber Leg Thunder Leg Armor Integrity Analyzer Relay Coupler [Grunt] Plasma Rifle [Rating: 88] Favorites ----------- Power Reinforced Deuterium Engine Engine Reinforced Deuterium Engine Power Core Light Nuclear Core Reactor Light Antimatter Reactor Propulsion Flexi-carbon Leg Treads Medium Treads Leg Flexi-carbon Leg Utility Advanced Heat Sink Device Advanced Heat Sink Storage Small Storage Unit Processor Enhanced Optical Array Protection Improved Utility Shielding Weapon Plasma Rifle Energy Gun Plasma Rifle Energy Cannon Heavy Plasma Cannon Ballistic Gun Light Assault Rifle Launcher Grenade Launcher Piercing Weapon Kinetic Spear Build | -11 -10 -10 -9 -8 -7 -7 -6 -6 -6 -6 -5 -5 ------- Run | Yrd Mat Min Mat Mat Fac DSF Fac Gar Fac DSF Fac Upp Slots Evolved 10 | . . . 2 2 2 . 2 . . . 2 . Power 1 | . . . . 1 . . . . . . . . Propulsion 2 | . . . 1 . 1 . . . . . . . Utility 5 | . . . . 1 1 . 1 . . . 2 . Weapon 2 | . . . 1 . . . 1 . . . . . Parts Attached 162 | 6 4 . 28 20 1 15 8 40 . 18 19 3 Power 27 | 1 . . 3 7 . 2 1 7 . 3 3 . Engine 15 | 1 . . 2 4 . 2 . 3 . 2 1 . Core 11 | . . . 1 3 . . 1 4 . . 2 . Reactor 1 | . . . . . . . . . . 1 . . Propulsion 53 | 2 1 . 12 5 1 12 1 10 . 8 1 . Treads 8 | . . . . . . 8 . . . . . . Leg 45 | 2 1 . 12 5 1 4 1 10 . 8 1 . Wheel . | . . . . . . . . . . . . . Hover . | . . . . . . . . . . . . . Flight . | . . . . . . . . . . . . . Utility 37 | 1 1 . 4 4 . 1 3 10 . 2 9 2 Device 20 | . 1 . 2 1 . 1 2 7 . . 5 1 Storage 3 | 1 . . . 1 . . . . . 1 . . Processor 3 | . . . . . . . 1 . . . 1 1 Hackware . | . . . . . . . . . . . . . Protection 11 | . . . 2 2 . . . 3 . 1 3 . Artifact . | . . . . . . . . . . . . . Weapon 45 | 2 2 . 9 4 . . 3 13 . 5 6 1 Energy Gun 30 | . 1 . 7 3 . . 2 9 . 5 2 1 Energy Cannon 7 | . . . 1 . . . 1 4 . . 1 . Ballistic Gun 4 | 2 . . 1 1 . . . . . . . . Ballistic Cannon . | . . . . . . . . . . . . . Launcher 2 | . 1 . . . . . . . . . 1 . Special Weapon . | . . . . . . . . . . . . . Impact Weapon . | . . . . . . . . . . . . . Slashing Weapon . | . . . . . . . . . . . . . Piercing Weapon 2 | . . . . . . . . . . . 2 . Special Melee Weapon . | . . . . . . . . . . . . . Unidentified Prototypes 7 | . . . 2 1 . . 1 . . . 2 1 Corrupted Parts 1 | . . . . . . . . 1 . . . . System Corruption 1 | . . . . . . . . 1 . . . . Parts Lost 68 | . 2 . 7 6 . . 1 15 . 8 28 1 Power 12 | . . . 1 2 . . . 3 . 1 5 . Propulsion 22 | . 1 . 3 1 . . 1 5 . 3 8 . Utility 16 | . 1 . 2 1 . . . 1 . 3 7 1 Weapon 18 | . . . 1 2 . . . 6 . 1 8 . Highest Loss Streak 24 | . 2 . 2 6 . . 1 12 . 7 24 1 To Critical Strikes 1 | . . . . . . . . . . . 1 . Average Backups 7 | 2 7 7 7 5 6 7 7 7 8 8 6 4 Power 1 | 1 1 2 1 . 2 2 2 1 2 1 . . Propulsion 1 | . 1 1 1 1 . 1 1 . 1 1 2 . Utility 2 | . 1 2 1 2 2 2 2 5 4 4 2 1 Weapon 1 | . 2 2 2 1 2 1 1 . 1 . 1 2 Tool/Special . | . . . . . . . . . . . . . Unused Backups 23 | . 2 . 6 3 . 3 1 3 . 1 . 4 Power 1 | . . . . . . . . . . . . 1 Propulsion 3 | . . . 1 . . 2 . . . . . . Utility 10 | . . . 3 2 . 1 1 2 . . . 1 Weapon 9 | . 2 . 2 1 . . . 1 . 1 . 2 Tool/Special . | . . . . . . . . . . . . . Average Slot Usage (%) 90 | . 98 85 99 95 97 100 99 96 93 91 78 14 Engine 8 | . 14 14 7 11 7 12 11 5 13 8 4 . Core 3 | . . . 3 5 7 1 1 6 . . 1 . Leg 24 | . 27 28 32 27 30 18 26 24 26 25 17 . Device 10 | . 12 . 6 13 7 7 12 13 13 10 17 8 Storage 6 | . 14 14 8 4 7 7 6 6 6 6 4 . Processor 3 | . . . . . . . 5 6 6 6 6 4 Protection 5 | . . . 7 6 12 15 6 5 6 3 1 . Energy Gun 19 | . 11 14 26 20 23 23 20 21 . 23 15 . Energy Cannon 2 | . . . 4 . . . 4 2 20 1 . . Ballistic Gun 2 | . 15 14 2 5 . . . . . . . . Peak Build Rating 88 | 6 7 6 18 29 32 52 66 68 61 78 88 15 Average Rating 42 | 3 6 6 15 22 31 47 63 60 61 69 67 11 On Entrance 32 | . 6 6 6 13 29 32 52 65 66 61 78 6 Naked Turns 71 | . . . . . . . . . . . 71 . Heaviest Build 70 | 12 16 13 23 38 40 53 56 70 62 66 66 3 Greatest Support 112 | 20 20 20 36 40 50 112 80 80 65 92 86 3 Greatest Overweight (x) 8 | . 1 . . 1 . 2 . 8 . 1 4 . Average Overweight (x) . | . . . . . . . . . . . . . Largest Inventory Capacity 10 | 8 8 8 8 8 8 8 8 8 8 10 10 5 Average Capacity 7 | 7 8 8 7 6 8 8 8 8 8 9 9 5 Most Carried 10 | 5 8 8 8 8 7 8 8 8 8 10 10 5 Average Carried 7 | 2 7 7 6 5 6 7 7 7 8 8 6 4 Final Capacity 10 | 8 8 8 5 8 8 8 8 8 8 10 5 5 Final Carried 9 | 2 7 8 5 8 6 8 8 8 8 9 4 5 Class Distribution -------------------- 33% | Scavenger-Tank 18% | Tank 17% | Scavenger-Skirmisher 16% | Mutant 8% | Scavenger-Gunner 3% | Scavenger-Mutant Dominant Class ---------------- Mutant | -10/Materials Mutant | -10/Mines Tank | -9/Materials Scavenger-Tank | -8/Materials Scavenger-Tank | -7/Factory Tank | -7/DSF Scavenger-Skirmisher | -6/Factory Scavenger-Tank | -6/Garrison Scavenger-Tank | -6/Factory Scavenger-Skirmisher | -6/DSF Scavenger-Skirmisher | -5/Factory Mutant | -5/Upper Caves Resources | -11 -10 -10 -9 -8 -7 -7 -6 -6 -6 -6 -5 -5 ----------- Run | Yrd Mat Min Mat Mat Fac DSF Fac Gar Fac DSF Fac Upp Matter Collected 2042 | 229 46 66 347 219 . 195 90 372 . 237 155 86 Remotely . | . . . . . . . . . . . . . Salvage Created 6230 | . 120 109 1431 424 . 518 277 1646 . 572 1133 . Parts 257 | . 7 2 71 22 . 23 7 60 . 29 36 . Haulers Intercepted 5 | . . . 3 . . . 1 . . . 1 . Recyclers Shooed 1 | . . . . . . . . . . . 1 . Parts Field Recycled . | . . . . . . . . . . . . . Retrieved Matter . | . . . . . . . . . . . . . Parts Self-Destructed 1 | . . . . . . . . . . . . 1 Prevented 4 | . . . . . . . . . . . . 4 Kills | -11 -10 -10 -9 -8 -7 -7 -6 -6 -6 -6 -5 -5 ------- Run | Yrd Mat Min Mat Mat Fac DSF Fac Gar Fac DSF Fac Upp Combat Hostiles Destroyed 97 | . 2 2 27 6 . 9 2 28 . 8 13 . Melee 7 | . . . . . . . . . . . 7 . Guns 74 | . . 2 25 5 . 8 1 24 . 7 2 . Cannons 3 | . . . 1 . . . 1 1 . . . . AOE 2 | . 2 . . . . . . . . . . . Classes Destroyed 15 | . 2 . 8 1 . 1 . . . 1 2 . Worker 2 | . . . 1 1 . . . . . . . . Builder 3 | . . . 3 . . . . . . . . . Hauler 5 | . . . 3 . . . 1 . . . 1 . Recycler 2 | . . . . . . . . . . . 2 . Operator 3 | . . . 3 . . . . . . . . . Watcher 10 | . 2 . 3 3 . . 1 . . . 1 . Swarmer 12 | . . . 4 . . . . 4 . . 4 . Grunt 54 | . 2 2 16 3 . 6 . 17 . 4 4 . Brawler 5 | . . . 1 . . 1 . 1 . . 2 . Duelist 1 | . . . 1 . . . . . . . . . Sentry 15 | . . . 5 2 . . 1 6 . . 1 . Specialist 2 | . . . . . . 1 . . . 1 . . Hunter 5 | . . . . 1 . 1 1 . . 2 . . Programmer 1 | . . . . . . . . . . . 1 . Heavy 2 | . . . . . . . . . . 1 1 . Best Kill Streak 7 | . 2 2 7 3 . 3 2 4 . 5 5 . Combat Bots Only 5 | . 2 2 5 2 . 3 1 4 . 5 5 . Max Kills in Single Turn 2 | . 1 1 2 2 . 1 1 1 . 1 1 . Gunslinging . | . . . . . . . . . . . . . Exploded 1 | . 1 . . . . . . . . . . . Melee 1 | . . . . . . . . . . . 1 . Uniques/NPCs Destroyed . | . . . . . . . . . . . . . Combat | -11 -10 -10 -9 -8 -7 -7 -6 -6 -6 -6 -5 -5 -------- Run | Yrd Mat Min Mat Mat Fac DSF Fac Gar Fac DSF Fac Upp Hostile Shots Fired 1155 | . 54 5 139 74 . 54 12 390 . 156 254 17 Missed 359 | . 20 2 41 23 . 11 6 143 . 40 65 8 Hits 796 | . 34 3 98 51 . 43 6 247 . 116 189 9 Melee 5 | . . . 2 . . . . . . . 3 . Projectile 791 | . 34 3 96 51 . 43 6 247 . 116 186 9 AOE 1 | . . . . . . . . . . . 1 . Critical Strikes 27 | . . 1 1 . . 4 . 6 . 5 9 1 Actively Blocked 1 | . . . . . . 1 . . . . . . Damage Taken 12559 | . 490 44 1237 661 . 669 270 2865 . 2342 3843 138 Core 2144 | . 117 13 211 53 . 18 45 403 . 282 904 98 Absorbed by Shields . | . . . . . . . . . . . . . Redirected to Shielding 102 | . . . . . . 9 22 71 . . . . Regen/Repaired (Parts) 50 | . . . 50 . . . . . . . . . Core Remaining (%) 66 | 100 . 48 47 90 . 97 . . . 14 . . Volleys Fired 272 | . 11 4 77 22 . 30 7 74 . 21 26 . Largest 4 | . 2 2 3 3 . 3 4 4 . 4 4 . Hottest 300 | . 70 60 180 185 . 185 260 298 . 300 300 . Shots Fired 843 | . 22 8 226 59 . 84 28 247 . 84 85 . Gun 783 | . 20 8 194 59 . 84 21 228 . 84 85 . Cannon 58 | . . . 32 . . . 7 19 . . . . Launcher 2 | . 2 . . . . . . . . . . . Special . | . . . . . . . . . . . . . Kinetic 42 | . 10 4 20 8 . . . . . . . . Thermal 739 | . . . 185 39 . 84 21 241 . 84 85 . Explosive 2 | . 2 . . . . . . . . . . . Electromagnetic 60 | . 10 4 21 12 . . 7 6 . . . . Robot Hit Streak 39 | . 7 6 19 13 . 6 17 39 . 10 18 . Robot Miss Streak 5 | . 2 1 5 2 . 4 2 3 . 2 2 . Penetration Max . | . . . . . . . . . . . . . Secondary Targets 15 | . . . 2 . . 1 . 6 . 5 1 . Max Gunslinging Chain 1 | . . . 1 . . 1 . 1 . 1 1 . Shots Hit Robots 571 | . 13 5 141 43 . 50 21 166 . 58 74 . Core Hits 261 | . 9 4 57 18 . 19 8 95 . 21 30 . Critical Kills . | . . . . . . . . . . . . . Critical Parts Destroyed . | . . . . . . . . . . . . . Critical Strikes 39 | . . . 10 3 . 7 1 3 . 6 9 . Burn 32 | . . . 9 3 . 7 . 3 . 6 4 . Corrupt 2 | . . . 1 . . . 1 . . . . . Impale 5 | . . . . . . . . . . . 5 . Melee Attacks 23 | . . . . . . . . . . . 23 . Impact . | . . . . . . . . . . . . . Slashing . | . . . . . . . . . . . . . Piercing 23 | . . . . . . . . . . . 23 . Sneak Attacks . | . . . . . . . . . . . . . Combat Hostiles . | . . . . . . . . . . . . . Follow-up Attacks 3 | . . . . . . . . . . . 3 . Damage Inflicted 12015 | . 361 67 2418 695 . 912 463 3805 . 1410 1884 . Guns 10166 | . 176 67 2031 695 . 912 271 3354 . 1410 1250 . Cannons 972 | . . . 329 . . . 192 451 . . . . Explosions 243 | . 185 . 58 . . . . . . . . . Melee 634 | . . . . . . . . . . . 634 . Ramming . | . . . . . . . . . . . . . Kinetic 306 | . 43 10 160 93 . . . . . . . . Thermal 10158 | . . . 2032 472 . 912 366 3716 . 1410 1250 . Explosive 185 | . 185 . . . . . . . . . . . Electromagnetic 732 | . 133 57 226 130 . . 97 89 . . . . Impact . | . . . . . . . . . . . . . Slashing . | . . . . . . . . . . . . . Piercing 634 | . . . . . . . . . . . 634 . Highest Corruption 9 | . 2 2 2 . . . . 1 1 1 9 9 Average Corruption 2 | . 2 2 2 . . . . 1 1 1 8 9 Corruption Purged . | . . . . . . . . . . . . . Corruption Blocked . | . . . . . . . . . . . . . Effects 47 | . 8 2 12 . . . . 8 . 2 4 11 Message Errors 10 | . 1 . 5 . . . . . . 1 1 2 Matter Fused 13 | . 1 . 1 . . . . 6 . 1 2 2 Heat Flow Errors 5 | . 1 1 1 . . . . 1 . . . 1 Energy Discharges 6 | . 2 1 . . . . . . . . . 3 Parts Rejected 1 | . . . 1 . . . . . . . . . Data Loss (minor) 8 | . 1 . 3 . . . . 1 . . 1 2 Data Loss (major) 3 | . 2 . . . . . . . . . . 1 Misfires 1 | . . . 1 . . . . . . . . . Overload Shots . | . . . . . . . . . . . . . Overflow Damage 51 | . . . . . . . . . . . 51 . Projectiles . | . . . . . . . . . . . . . Explosions . | . . . . . . . . . . . . . Melee 51 | . . . . . . . . . . . 51 . Knockbacks . | . . . . . . . . . . . . . Impact . | . . . . . . . . . . . . . Kinetic . | . . . . . . . . . . . . . Secondary . | . . . . . . . . . . . . . Self-Inflicted Damage 156 | . 12 . . . . . 144 . . . . . Shots 3 | . 1 . . . . . 2 . . . . . Rammed . | . . . . . . . . . . . . . Targets Rammed . | . . . . . . . . . . . . . Kicked . | . . . . . . . . . . . . . Crushed . | . . . . . . . . . . . . . Highest Temperature 657 | . 270 212 657 78 . 222 288 367 . 267 413 240 Average Temperature 117 | . 112 70 124 24 . 70 112 134 . 100 116 140 Received Heat Transfer 3431 | . 276 45 492 180 . 387 12 1161 . 526 280 72 Effects 23 | . . . 12 . . . . 7 . . 4 . Shutdowns 5 | . . . 3 . . . . 1 . . 1 . Energy Bleed 4 | . . . 1 . . . . 3 . . . . Interference 9 | . . . 3 . . . . 3 . . 3 . Damage (minor) 2 | . . . 2 . . . . . . . . . Damage (major) 3 | . . . 3 . . . . . . . . . Siege Activations . | . . . . . . . . . . . . . Martial Activations . | . . . . . . . . . . . . . Shielding Activations . | . . . . . . . . . . . . . Robots Disrupted . | . . . . . . . . . . . . . Combat Hostiles . | . . . . . . . . . . . . . Robots Corrupted . | . . . . . . . . . . . . . Combat Hostiles . | . . . . . . . . . . . . . Parts Fried 2 | . . . . . . . 1 1 . . . . Impact Corruptions . | . . . . . . . . . . . . . Robots Melted 14 | . . . 1 1 . 1 1 4 . 1 5 . Combat Hostiles 11 | . . . 1 1 . 1 . 3 . 1 4 . Parts Melted 60 | . . . 16 4 . 4 1 18 . 9 8 . Heat Transferred 23571 | . . . 5095 1332 . 2479 670 7168 . 3800 3027 . Parts Sabotaged . | . . . . . . . . . . . . . Parts Stolen . | . . . . . . . . . . . . . Parts Stripped . | . . . . . . . . . . . . . Power Chain Reactions 1 | . . . 1 . . . . . . . . . Alert | -11 -10 -10 -9 -8 -7 -7 -6 -6 -6 -6 -5 -5 ------- Run | Yrd Mat Min Mat Mat Fac DSF Fac Gar Fac DSF Fac Upp Maximum Alert Level 3 | . . . 1 . . 1 . 3 2 2 1 . Low Security (%) 67 | 100 100 100 78 100 100 94 100 19 . . 94 . Level 1 17 | . . . 21 . . 5 . 29 . 69 5 . Level 2 9 | . . . . . . . . 28 100 30 . . Level 3 5 | . . . . . . . . 21 . . . . Level 4 . | . . . . . . . . . . . . . Level 5 . | . . . . . . . . . . . . . High Security . | . . . . . . . . . . . . . Max Security . | . . . . . . . . . . . . . Sterilizations 2 | . . . . . . 1 . . . 1 . . Peak Influence 843 | . 62 53 335 174 5 270 152 843 442 403 211 . Initial 442 | . . 15 . 135 . . 141 . 442 298 211 . Average 187 | . 8 15 101 82 1 118 62 421 435 348 111 . Influence Increases 3455 | . 109 53 877 226 5 270 151 1033 5 185 451 90 Destroy 0b10 Robot/C 1980 | . 40 40 560 120 . 180 40 580 . 160 260 . Destroy 0b10 Robot/NC 140 | . 10 . 65 20 . . 10 10 . 5 20 . Destroy Leader 368 | . 4 10 152 36 . 30 14 40 . 20 62 . Allied During Kill 21 | . . 3 9 . . . . 9 . . . . Successful Hack 84 | . 8 . 7 19 5 . 26 14 5 . . . Disable Machine 105 | . . . 15 . . 30 45 15 . . . . Anti-Garrison Action 300 | . . . . . . . . 300 . . . . Destroy Structure 67 | . 17 . 9 1 . . 16 20 . . 4 . Partial Spotted 30 | . . . . 15 . . . . . . 15 . Lose Combat Pursuer 360 | . 30 . 60 15 . 30 . 45 . . 90 90 Influence Decreases 3410 | . 68 91 557 549 5 . 421 190 421 209 803 96 Entered New Map 1088 | . . 26 3 188 . . 129 . 401 129 192 20 Time Decay 1469 | . 48 65 444 198 5 . 282 . 20 . 331 76 Lost Part 670 | . 20 . 70 60 . . 10 150 . 80 280 . Lost Ally 80 | . . . 40 . . . . 40 . . . . Purge Threat 103 | . . . . 103 . . . . . . . . Squads Dispatched 13 | . 1 . 4 . . 1 2 . . . 5 . Investigation 2 | . . . . . . . 1 . . . 1 . Extermination 2 | . . . . . . . 1 . . . 1 . Reinforcement 7 | . 1 . 4 . . 1 . . . . 1 . Assault 2 | . . . . . . . . . . . 2 . Garrison . | . . . . . . . . . . . . . Intercept . | . . . . . . . . . . . . . Searches Triggered . | . . . . . . . . . . . . . Construction Impeded . | . . . . . . . . . . . . . Haulers Reinforced . | . . . . . . . . . . . . . Active Scanning Responses . | . . . . . . . . . . . . . Cargo Convoy Interrupts . | . . . . . . . . . . . . . Stealth | -11 -10 -10 -9 -8 -7 -7 -6 -6 -6 -6 -5 -5 --------- Run | Yrd Mat Min Mat Mat Fac DSF Fac Gar Fac DSF Fac Upp Distress Signals 4 | . . . 3 1 . . . . . . . . Communications Jammed 11 | . . . . . . . . . . . 11 . Distress Signals 8 | . . . . . . . . . . . 8 . Times Spotted 159 | . 12 2 42 10 . 11 3 36 . 8 26 9 Peak Tracking Total 10 | . 5 1 6 4 . 4 1 10 . 5 9 7 Tactical Retreats 18 | . 2 . 4 1 . 1 . 3 . . 4 3 Traps | -11 -10 -10 -9 -8 -7 -7 -6 -6 -6 -6 -5 -5 ------- Run | Yrd Mat Min Mat Mat Fac DSF Fac Gar Fac DSF Fac Upp Traps Triggered 10 | . 1 . 1 . . 1 1 2 . 2 2 . Indirectly . | . . . . . . . . . . . . . Trap Hack Attempts . | . . . . . . . . . . . . . Triggered . | . . . . . . . . . . . . . Disarmed . | . . . . . . . . . . . . . Reprogrammed . | . . . . . . . . . . . . . Reused . | . . . . . . . . . . . . . Traps Extracted . | . . . . . . . . . . . . . Installed . | . . . . . . . . . . . . . Triggered . | . . . . . . . . . . . . . Machines | -11 -10 -10 -9 -8 -7 -7 -6 -6 -6 -6 -5 -5 ---------- Run | Yrd Mat Min Mat Mat Fac DSF Fac Gar Fac DSF Fac Upp Machines Disabled 12 | . . . 2 . . 2 3 5 . . . . Max in Single Turn 3 | . . . 1 . . 1 3 1 . . . . Garrison Access 1 | . . . . . . . . . . . 1 . Garrison Relay 4 | . . . . . . . . 4 . . . . Machines Repaired . | . . . . . . . . . . . . . Machines Dismantled . | . . . . . . . . . . . . . Machines Sabotaged . | . . . . . . . . . . . . . Overloaded Fab Kills . | . . . . . . . . . . . . . Hacking | -11 -10 -10 -9 -8 -7 -7 -6 -6 -6 -6 -5 -5 --------- Run | Yrd Mat Min Mat Mat Fac DSF Fac Gar Fac DSF Fac Upp Machines Accessed 24 | . 2 . 7 4 1 . 2 2 2 . 3 1 Terminals 15 | . 1 . 4 3 1 . . 2 1 . 2 1 Fabricators 1 | . . . . . . . . . 1 . . . Repair Stations 4 | . . . 2 1 . . 1 . . . . . Recycling Units 3 | . 1 . 1 . . . . . . . 1 . Scanalyzers . | . . . . . . . . . . . . . Garrison Access 1 | . . . . . . . 1 . . . . . Total Hacks 53 | . 3 . 16 14 2 . 6 2 4 . 5 1 Successful 24 | . 3 . 5 6 1 . 2 2 2 . 2 1 Failed 29 | . . . 11 8 1 . 4 . 2 . 3 . Catastrophic 5 | . . . . 2 . . 1 . . . 2 . Database Lockouts . | . . . . . . . . . . . . . Manual 4 | . 1 . . 2 . . . . . . 1 . Terminals 34 | . 1 . 10 11 2 . . 2 3 . 4 1 Fabricators 1 | . . . . . . . . . 1 . . . Repair Stations 13 | . . . 5 3 . . 5 . . . . . Recycling Units 4 | . 2 . 1 . . . . . . . 1 . Scanalyzers . | . . . . . . . . . . . . . Garrison Access 1 | . . . . . . . 1 . . . . . Terminal Hacks 15 | . 1 . 2 6 1 . . 2 1 . 1 1 Record 1 | . . . . . . . . . . . . 1 Robot Analysis 1 | . . . . 1 . . . . . . . . Open Door 1 | . . . . . . . . 1 . . . . Open DSF 3 | . . . . . 1 . . . 1 . 1 . Branch Access Points 2 | . 1 . . 1 . . . . . . . . Emergency Access Points 1 | . . . . 1 . . . . . . . . Terminal Index 1 | . . . 1 . . . . . . . . . Alert Level 1 | . . . . 1 . . . . . . . . Unreport Threat 2 | . . . . 2 . . . . . . . . Locate Traps 1 | . . . 1 . . . . . . . . . Patrol Navigation 1 | . . . . . . . . 1 . . . . Fabricator Hacks 1 | . . . . . . . . . 1 . . . Network Status 1 | . . . . . . . . . 1 . . . Repair Station Hacks 3 | . . . 2 . . . 1 . . . . . Scan Component 2 | . . . 1 . . . 1 . . . . . Repair 1 | . . . 1 . . . . . . . . . Recycling Unit Hacks 4 | . 2 . 1 . . . . . . . 1 . Report Inventory 3 | . 1 . 1 . . . . . . . 1 . Retrieve Components 1 | . 1 . . . . . . . . . . . Scanalyzer . | . . . . . . . . . . . . . Garrison Access Hacks 1 | . . . . . . . 1 . . . . . Unlock Access 1 | . . . . . . . 1 . . . . . Unauthorized Hacks . | . . . . . . . . . . . . . Terminals . | . . . . . . . . . . . . . Fabricators . | . . . . . . . . . . . . . Repair Stations . | . . . . . . . . . . . . . Recycling Units . | . . . . . . . . . . . . . Scanalyzers . | . . . . . . . . . . . . . Garrison Access . | . . . . . . . . . . . . . Data Cores Recovered . | . . . . . . . . . . . . . Used . | . . . . . . . . . . . . . Hacking Detections 14 | . . . 5 2 . . 2 1 1 . 3 . Full Trace Events 3 | . . . 1 . . . 1 . . . 1 . Feedback Events . | . . . . . . . . . . . . . Feedback Blocked . | . . . . . . . . . . . . . Robot Schematics Acquired . | . . . . . . . . . . . . . Robots Built . | . . . . . . . . . . . . . Authchips . | . . . . . . . . . . . . . Time . | . . . . . . . . . . . . . Total Robot Build Rating . | . . . . . . . . . . . . . Part Schematics Acquired . | . . . . . . . . . . . . . Parts Built . | . . . . . . . . . . . . . Authchips . | . . . . . . . . . . . . . Time . | . . . . . . . . . . . . . Total Part Build Rating . | . . . . . . . . . . . . . Parts Repaired 1 | . . . 1 . . . . . . . . . Time 32 | . . . 32 . . . . . . . . . Parts Recycled . | . . . . . . . . . . . . . Recycled Matter . | . . . . . . . . . . . . . Retrieved Matter . | . . . . . . . . . . . . . Retrieved Components 2 | . 2 . . . . . . . . . . . Parts Scanalyzed . | . . . . . . . . . . . . . Part Schematics Acquired . | . . . . . . . . . . . . . Parts Damaged . | . . . . . . . . . . . . . Bothacking | -11 -10 -10 -9 -8 -7 -7 -6 -6 -6 -6 -5 -5 ------------ Run | Yrd Mat Min Mat Mat Fac DSF Fac Gar Fac DSF Fac Upp Used RIF Installer 1 | . . . . . . . . 1 . . . . Robots Hacked . | . . . . . . . . . . . . . Non-combat . | . . . . . . . . . . . . . Combat . | . . . . . . . . . . . . . Robot Hacks Applied . | . . . . . . . . . . . . . Relay Couplers Released 13 | . . . . . . . . 12 . . 1 . Machine Destruction 13 | . . . . . . . . 12 . . 1 . Fabnet Peak Effective % . | . . . . . . . . . . . . . Robots Rewired . | . . . . . . . . . . . . . Allies Hacked . | . . . . . . . . . . . . . Hacks Repelled . | . . . . . . . . . . . . . Allies | -11 -10 -10 -9 -8 -7 -7 -6 -6 -6 -6 -5 -5 -------- Run | Yrd Mat Min Mat Mat Fac DSF Fac Gar Fac DSF Fac Upp Total Allies 6 | . . 4 . . . . . 2 . . . . Largest Group 4 | . . 4 4 . . . . 2 . . . . Highest-Rated Group 84 | . . 71 71 . . . . 84 . . . . Highest-Rated Ally 46 | . . 31 31 . . . . 46 . . . . Initial Warlord ECA Mod 18 | . . . . . . . 9 9 . . . . Total Orders . | . . . . . . . . . . . . . Ally Attacks 44 | . . 3 26 . . . . 15 . . . . Total Damage 675 | . . 41 256 . . . . 378 . . . . Kills 2 | . . . 1 . . . . 1 . . . . Allies Corrupted . | . . . . . . . . . . . . . Allies Melted . | . . . . . . . . . . . . . Intel | -11 -10 -10 -9 -8 -7 -7 -6 -6 -6 -6 -5 -5 ------- Run | Yrd Mat Min Mat Mat Fac DSF Fac Gar Fac DSF Fac Upp Active Infowar (turns) 4173 | . 409 . . . . . 692 1700 55 471 661 185 Optics 3579 | . . . . . . . 692 1700 55 471 661 . Sensors 1508 | . 409 . . . . . 617 12 . 21 449 . Terrain 185 | . . . . . . . . . . . . 185 Jamming 533 | . . . . . . . . . . . 533 . Robot Analysis Total 1 | . . . . 1 . . . . . . . . Derelict Logs Recovered 1 | . . . . . . . . . . . . 1 Drone Launches . | . . . . . . . . . . . . . Drone Recoveries . | . . . . . . . . . . . . . Exploration | -11 -10 -10 -9 -8 -7 -7 -6 -6 -6 -6 -5 -5 ------------- Run | Yrd Mat Min Mat Mat Fac DSF Fac Gar Fac DSF Fac Upp Turns Passed 7281 | 76 438 209 1278 544 23 655 699 1700 55 471 761 372 Spaces Moved 4810 | 60 311 136 660 328 18 388 484 937 46 251 531 660 Core 871 | 13 . . . . . . . 5 . . 193 660 Treads 109 | . . . . . . 109 . . . . . . Legs 3830 | 47 311 136 660 328 18 279 484 932 46 251 338 . Wheels . | . . . . . . . . . . . . . Hover . | . . . . . . . . . . . . . Flight . | . . . . . . . . . . . . . Fastest Speed 50 | 50 120 120 120 120 120 120 120 120 120 120 50 50 Average Speed 110 | 104 120 120 120 120 120 132 120 126 120 120 99 50 Slowest Speed 450 | 120 190 120 120 190 120 260 120 450 120 190 260 50 Overloaded Moves . | . . . . . . . . . . . . . Propulsion Burnouts . | . . . . . . . . . . . . . Robots Hopped . | . . . . . . . . . . . . . Potential Cave-ins . | . . . . . . . . . . . . . Cave-ins Triggered . | . . . . . . . . . . . . . Exploration Rate (%) 42 | 4 62 34 49 25 1 95 14 78 2 97 18 67 Regions Visited 12 Branch Regions 2 Pre-discovered Areas . | . . . . . . . . . . . . . Known Exits Taken 4 | . 1 . . . 1 . 1 . 1 . . . Unknown Exits Taken 5 | 1 . 1 1 1 . . . . . . 1 . Scrap Searched 4 | . . . . . . . . . . . . 4 Spaces Dug . | . . . . . . . . . . . . . Terrain Destroyed 33 | . 16 . 2 . . . 15 . . . . . Melee . | . . . . . . . . . . . . . Projectile . | . . . . . . . . . . . . . AOE 33 | . 16 . 2 . . . 15 . . . . . Terrain Rammed . | . . . . . . . . . . . . . Walls Destroyed . | . . . . . . . . . . . . . Machines Disabled . | . . . . . . . . . . . . . Actions | -11 -10 -10 -9 -8 -7 -7 -6 -6 -6 -6 -5 -5 --------- Run | Yrd Mat Min Mat Mat Fac DSF Fac Gar Fac DSF Fac Upp Total 6152 | 73 353 174 987 428 19 466 584 1273 46 369 678 702 Wait 633 | . 16 34 164 31 . 8 73 168 . 54 52 33 Move 4798 | 59 310 135 659 327 17 387 483 936 45 250 530 660 Hop . | . . . . . . . . . . . . . Pick Up 127 | 8 9 1 28 15 . 13 7 15 . 12 16 3 Fast Attach 21 | . . . 2 2 . . . 12 . 3 1 1 Attach 68 | 6 2 . 11 6 2 . 3 7 . 9 20 2 Detach 4 | . . . . . . . . . . 1 2 1 Swap 98 | . 3 . 18 15 . 15 6 26 . 10 5 . Drop 101 | . 2 . 28 10 . 13 5 25 1 9 7 1 Fire 272 | . 11 4 77 22 . 30 7 74 . 21 26 . Melee 19 | . . . . . . . . . . . 19 . Ram . | . . . . . . . . . . . . . Kick . | . . . . . . . . . . . . . Crush . | . . . . . . . . . . . . . Escape Stasis 10 | . . . . . . . . 10 . . . . Rewire 1 | . . . . . . . . . . . . 1 Trap . | . . . . . . . . . . . . . Miscellaneous . | . . . . . . . . . . . . . Route ------- -11/Scrapyard -10/Materials (discovered 2 exits: *Mat / *Min) -10/Mines -9/Materials (discovered 2 exits: *Mat / [*Min]) -8/Materials -7/Factory (discovered 2 exits: *Fac / DSF) -7/DSF -6/Factory -6/Garrison (discovered 3 exits: *Fac x3) -6/Factory -6/DSF -5/Factory -5/Upper Caves History --------- Turn | Location | Event 24 | -11/Scrapyard | Discovered new exit (range 15) 77 | -11/Scrapyard | Entered Materials 303 | -10/Materials | Build established: Mutant 341 | -10/Materials | Discovered new exit (range 8) 376 | -10/Materials | Identified exit to Mines 515 | -10/Materials | Entered Mines 518 | -10/Mines | Received a Mining Laser from a helpful Derelict 621 | -10/Mines | Core integrity fell below 50% 695 | -10/Mines | Discovered new exit (range 9) 698 | -10/Mines | Assisted by bots powering up and referring to "LRC-V3" 724 | -10/Mines | Entered Materials 724 | -9/Materials | Accompanied by 4 allies 724 | -9/Materials | Evolved 2 slots: Propulsion x1, Weapon x1 870 | -9/Materials | Lost 3 allies 1031 | -9/Materials | Build established: Tank 1359 | -9/Materials | Discovered new exit (range 16) 1596 | -9/Materials | Discovered new exit (range 12) 1744 | -9/Materials | Build established: Scavenger-Gunner 1825 | -9/Materials | Core integrity fell below 50% 1942 | -9/Materials | Repaired Beam Rifle 2002 | -9/Materials | Entered another Materials area 2002 | -8/Materials | Evolved 2 slots: Power x1, Utility x1 2193 | -8/Materials | Lost 6 parts (2p1n1u2w) 2512 | -8/Materials | Discovered new exit (range 3) 2546 | -8/Materials | Entered Factory 2546 | -7/Factory | Evolved 2 slots: Propulsion x1, Utility x1 2552 | -7/Factory | Discovered new exit (range 16) 2558 | -7/Factory | Identified exit to DSF 2569 | -7/Factory | Entered DSF 2570 | -7/DSF | Joined Warlord attack on 0b10 via DSF 2592 | -7/DSF | Additional patrols routed to DSF 2685 | -7/DSF | Discovered new exit (range 16) 2874 | -7/DSF | Build established: Tank 3203 | -7/DSF | Sterilization system engaged 3223 | -7/DSF | Ambient heat levels rising (+10) 3224 | -7/DSF | Entered Factory 3224 | -6/Factory | Evolved 2 slots: Utility x1, Weapon x1 3441 | -6/Factory | Spotted B-75 Beast 3590 | -6/Factory | Build established: Scavenger-Skirmisher 3878 | -6/Factory | Identified exit to Garrison 3923 | -6/Factory | Entered Garrison 3955 | -6/Garrison | Triggered checkpoint 4169 | -6/Garrison | Rescued a captive Derelict 4171 | -6/Garrison | Rescued a captive Derelict 4190 | -6/Garrison | Garrison Relay disabled 4240 | -6/Garrison | Triggered checkpoint 4248 | -6/Garrison | Build established: Scavenger-Tank 4261 | -6/Garrison | Triggered checkpoint 4380 | -6/Garrison | Lost 12 parts (2p5n1u4w) 4642 | -6/Garrison | Discovered new exit (range 13) 4690 | -6/Garrison | Triggered checkpoint 4764 | -6/Garrison | Garrison Relay disabled 4843 | -6/Garrison | Triggered checkpoint 4975 | -6/Garrison | Discovered new exit (range 9) 5124 | -6/Garrison | Discovered new exit (range 21) 5187 | -6/Garrison | Installed Relay Interface Framework 5211 | -6/Garrison | Triggered checkpoint 5252 | -6/Garrison | Garrison Relay disabled 5400 | -6/Garrison | Triggered checkpoint 5415 | -6/Garrison | Core integrity fell below 50% 5514 | -6/Garrison | Garrison Relay disabled 5623 | -6/Garrison | Entered Factory 5650 | -6/Factory | Identified exit to DSF 5678 | -6/Factory | Entered DSF 5758 | -6/DSF | Additional patrols routed to DSF 5827 | -6/DSF | Discovered new exit (range 16) 5987 | -6/DSF | Core integrity fell below 20% 6012 | -6/DSF | Sterilization system engaged 6032 | -6/DSF | Ambient heat levels rising (+10) 6033 | -6/DSF | Lost 7 parts (1p3n2u1w) 6047 | -6/DSF | Ambient heat levels rising (+10) 6062 | -6/DSF | Ambient heat levels rising (+10) 6077 | -6/DSF | Ambient heat levels rising (+10) 6092 | -6/DSF | Ambient heat levels rising (+10) 6107 | -6/DSF | Ambient heat levels rising (+10) 6122 | -6/DSF | Ambient heat levels rising (+10) 6137 | -6/DSF | Ambient heat levels rising (+10) 6149 | -6/DSF | Entered Factory 6149 | -5/Factory | Evolved 2 slots: Utility x2 6266 | -5/Factory | Build established: Scavenger-Skirmisher 6564 | -5/Factory | Lost 4 parts (1p1u2w) 6804 | -5/Factory | Core integrity fell below 50% 6810 | -5/Factory | Released all parts (3) 6838 | -5/Factory | Lost 24 parts (4p8n6u6w) 6872 | -5/Factory | Core integrity fell below 20% 6885 | -5/Factory | Found Prototype Launcher 6886 | -5/Factory | Identified Tesla Bomb Launcher 6899 | -5/Factory | Discovered new exit (range 16) 6910 | -5/Factory | Entered Upper Caves 6927 | -5/Upper Caves | Encountered a Warlord checkpoint 6935 | -5/Upper Caves | Learned 4 Factory zone layouts 7103 | -5/Upper Caves | Build established: Mutant 7204 | -5/Upper Caves | Spotted B-75 Beast 7210 | -5/Upper Caves | Attracted the attention of an 0b10 checkpoint 7282 | -5/Upper Caves | Destroyed by B-75 Beast with Heavy Machine Gun Last Messages --------------- 07073_ System corrupted: Matter fused (-8). 07073_ Acquired 24 matter. 07079_ Searching scrap... 07079_ Found Imp. Terrain Scanner. 07079_ Found 41 Matter. 07082_ Acquired Imp. Terrain Scanner. 07105_ Acquired 5 matter. 07106_ Acquired 1 matter. 07108_ Acquired 3 matter. 07125_ System corrupted: Heat flow error (+280). 07137_ RT-KON(k) breaks down the debris. 07149_ System corrupted: Component data lost. 07172_ System corrupted: Energy discharge (-21). 07210_ Y-64 Sentinel: "INTERCEPTING UNREGISTERED DERELICT." 07212_ System corrupted: Energy discharge (-27). 07238_ System corrupted: Substantial component data lost. 07273_ Critical hit (Burn: +37). 07277_ Imp. Terrain Scanner destroyed. Map ----- +----------------------------------------------------+ | ?????????????????????????????????????????????????? | | ?????????????????????????????????????????????????? | | ?????????????????????#????????#??????????????????? | | ??????#????#??????????##?????????#??#????????????? | | ?????????#?????#?????#???#????????????#??????????? | | ????????????????????#????????#?#?#?????#?#???????? | | ?????????##?????????#??#??#??????????????????????? | | ???????#????????###??#???#???#?#?#???????????????? | | ?????#??????#?#??????????#?????##???#?????#??????? | | #????????????#????????##????#???#?#??#?#?????????? | | ??###?####??????#???#??##?#?????#?????????#??????? | | ??## ## ##?####??#??## #??##??#####?????#??????? | | ??# #?# ######?# ####?#?## ##??????????#? | | ??# ## ##### #???# #???#????????? | | ?## #?#?# ###?# #????????????? | | # ##?### #### #????????????? | | # ###?#?## ### #?????##?????? | | ##?#?#?## ##???????????? | | ###?#?## ##???#???????? | | ##### ##?##### ## #??######????? | | #?####### ###### #### #????#??#????? | | ???#??##?### ### ###### ##???##???#???? | | ?????######### ### ###?######?##????#?##??? | | ??? ??### ?#?#?## ## ###??###??#?????????#??? | | ? ?? ?### #?#??# ## #######??#?????#???????? | | ?????### ####### ## @##?####?#####??#???????? | | ?? ? #?# #?##### ;;g ##?# #?#??##???????????? | | ?? ???# ### ## ####????#?????????? | | ????? ?## ###?####????#????? | | ??? ?? ?# ## ##?#????????????? | | ??????### ### ##?????????????? | | ?????#?## ## ##?## ## #??????????????? | | ?? ????# #######?## #?? #????#?????????? | | ?????#?# ####???#?### #???#??????#???????# | | ?? ????# #####?######## ####?#??#?????????? | | ##### ###?#?## ## #?#??????#????????? | | ###?### ## #???#??#??????#??? | | ### ###### ## #??#?#???????????? | | ? #?## ## ### ????#?????????#?? | | ?? #?# #### ### ??????????#?#### | | ?## ##### ####??##?????????###??# | | ?? ?### ## ####?# ##??##????????????##?#? | | ?###??###?# ##?## ???????????????####???? | | ?????##??## #?# #?????????#??????##?##?# | | ??????#?## ## ######???#???#?????#??##? | | ????#?# # ### ??#??##????????#?###???###?? | | ????## ## ##?# #??????#?##???????#??##?#?#? | | ???#?## ##?# ##?# #??##??#?????##???#?#####??## | | ???#??###??## #??# #?#??##?#?#???##??###?#?##?#? | | ??#????#???## ##?# #????##?#????##???#??????#### | +----------------------------------------------------+ Best States ------------- Heat Dissipation 94 Energy Generation 34 Energy Capacity 500 Matter Stores 300 Matter Capacity 300 Sight Range 22 Robot Scan Range 16 Terrain Scan Range 16 Terrain Scan Density 210 Jamming Range 14 Additional Mass Support 6 Armor Coverage 825 Utility Shielding 66 Weapon Cycling 20 Melee Speed Boost 20 Evasion (%) 70 Armor Integrity Analysis 30 Recoil Reduction 4 Item Schematics ----------------- None Robot Schematics ------------------ None Fabricated ------------ Nothing Repaired ---------- Beam Rifle | 33% | -9/Materials Alien Tech Used ----------------- None Achievements -------------- None Challenges ------------ None Game ------ Seed DisassembledSensorShell Manual? 0 Play Time 01:30:10 Cumulative 50.0 hours Start 2025.08.07 @ 18:50:42 End 2025.08.07 @ 20:37:49 Sessions 1 Manual Loads 0 Difficulty Rogue Special Mode None Game No. 35 Rogue 35 Adventurer 0 Explorer 0 Win Type - Total 1 Types 1/0/0/0/0/0/0/0/0/0 Lore% 45 Gallery% 40 Achievement% 35 Wizard Run 0 Options --------- Layout 1 ASCII 0 Keyboard 0 Movement Mouse Keybinds 0 Fullscreen 1 Font 24/Smallcaps Map View 50x35 Zoom Use 0% Tactical HUD 1 Map Filters NONE Filters NONE Steam 1 RUN: c33b7d54-9350-4565-8d94-d4f3b31285a8